fUST/lending_fUST_20250929
["ID","MTS","AMOUNT","RATE_DAILY","PERIOD"]
[388405293,1759158355458,-1305.18,0.00023873,2]
[388405294,1759158355493,-480.0,0.00023873,2]
[388405295,1759158355528,-480.0,0.00023873,2]
[388405296,1759158355564,-539.25905927,0.00023873,2]
[388405297,1759158355601,-254.87694748,0.00023873,2]
[388405298,1759158358155,-225.12305252,0.00023873,2]
[388405299,1759158358165,-450.57788821,0.00023873,2]
[388405300,1759158358188,-29.42211179,0.00023873,2]
[388405301,1759158358197,-450.57788821,0.00023873,2]
[388405302,1759158358224,-29.42211179,0.00023873,2]
[388405303,1759158358234,-450.57788821,0.00023873,2]
[388405304,1759158358255,-29.42211179,0.00023873,2]
[388405305,1759158358265,-509.83694748,0.00023873,2]
[388405306,1759158358291,-219.78305252,0.00023873,2]
[388405307,1759158358300,-260.21694748,0.00023873,2]
[388405308,1759158361754,-2189.05,0.00023786,2]
[388405309,1759158361790,-748.97,0.00023786,2]
[388405310,1759158361825,-395.96,0.00023865,3]
[388405311,1759158361856,-492.41258199,0.00023871,2]
[388405312,1759158361890,-246.74483602,0.00023871,2]
[388405313,1759158362048,-1853.73516398,0.00023871,2]
[388405314,1759158362086,-326.07305252,0.00023873,2]
[388405315,1759158362122,-791.81,0.00023873,2]
[388405316,1759158362158,-589.1,0.00023873,2]
[388405317,1759158362191,-731.28,0.00023873,2]
[388405318,1759158362225,-582.25,0.00023873,2]
[388405319,1759158362261,-480.0,0.00023873,2]
[388405320,1759158362297,-480.0,0.00023873,2]
[388405321,1759158362333,-480.0,0.00023873,2]
[388405322,1759158362370,-480.0,0.00023873,2]
[388405323,1759158362436,-472.11652225,0.00023873,2]
[388405324,1759158362473,-480.0,0.00023873,2]
[388405325,1759158362509,-480.0,0.00023873,2]
[388405326,1759158362545,-480.0,0.00023873,2]
[388405327,1759158362582,-480.0,0.00023873,2]
[388405328,1759158362617,-795.23,0.00023873,2]
[388405329,1759158362652,-480.0,0.00023873,2]
[388405330,1759158362690,-480.0,0.00023873,2]
[388405331,1759158362732,-480.0,0.00023873,2]
[388405332,1759158362771,-303.98594967,0.00023873,2]
[388405333,1759158363022,-829.33,0.00023873,2]
[388405334,1759158363061,-584.43,0.00023873,2]
[388405335,1759158363098,-480.0,0.00023873,2]
[388405336,1759158363135,-480.0,0.00023873,2]
[388405337,1759158363171,-480.0,0.00023873,2]
[388405338,1759158363211,-759.72,0.00023873,2]
[388405339,1759158363252,-480.0,0.00023873,2]
[388405340,1759158363288,-480.0,0.00023873,2]
[388405341,1759158363324,-373.05,0.00023873,2]
[388405342,1759158363511,-106.95,0.00023873,2]
[388405343,1759158363549,-480.0,0.00023873,2]
[388405344,1759158363587,-480.0,0.00023873,2]
[388405345,1759158363624,-500.0,0.00023873,2]
[388405346,1759158363661,-630.99,0.00023873,2]
[388405347,1759158363702,-480.0,0.00023873,2]
[388405348,1759158363759,-480.0,0.00023873,2]
[388405349,1759158363797,-813.07,0.00023873,2]
[388405350,1759158363835,-480.0,0.00023873,2]
[388405351,1759158363873,-284.92,0.00023873,2]
[388405352,1759158364196,-528.15,0.00023873,2]
[388405353,1759158364233,-813.07,0.00023873,2]
[388405354,1759158364269,-480.0,0.00023873,2]
[388405355,1759158364304,-782.31,0.00023873,2]
[388405356,1759158364343,-381.79477701,0.00023873,2]
[388405357,1759158364379,-674.99,0.00023873,2]
[388405358,1759158364413,-1235.00044598,0.00023873,2]
[388405359,1759158365987,-300.0,0.00023872,2]
[388405360,1759158365995,-500.0,0.00023873,2]
[388405361,1759158366004,-308.69198289,0.00023873,2]
[388405362,1759158368681,28641.0,0.00023,7]
[388405363,1759158371670,-1844.27,0.00023786,2]
[388405364,1759158371710,-197.98,0.00023865,3]
[388405365,1759158371748,-560.08,0.00023871,2]
[388405366,1759158371786,-191.30801711,0.00023873,2]
[388405367,1759158371819,-500.0,0.00023873,2]
[388405368,1759158371852,-500.0,0.00023873,2]
[388405369,1759158371885,-500.0,0.00023873,2]
[388405370,1759158371918,-209.37955402,0.00023873,2]
[388405371,1759158372137,-480.0,0.00023873,2]
[388405372,1759158372393,-679.08,0.00023873,2]
[388405373,1759158372427,-1384.68,0.00023873,2]
[388405374,1759158372461,-481.05609909,0.00023873,2]
[388405375,1759158372495,-619.75,0.00023873,2]
[388405376,1759158372531,-480.0,0.00023873,2]
[388405377,1759158372566,-480.0,0.00023873,2]
[388405378,1759158372603,-747.37780182,0.00023873,2]
[388405379,1759158372782,-480.0,0.00023871,2]
[388405380,1759158372819,-256.12219818,0.00023873,2]
[388405381,1759158372854,-480.0,0.00023873,2]
[388405382,1759158372890,-729.19,0.00023873,2]
[388405383,1759158372926,-830.21,0.00023873,2]
[388405384,1759158372962,-1370.94,0.00023873,2]
[388405385,1759158372998,-480.0,0.00023873,2]
[388405386,1759158373034,-231.24560364,0.00023873,2]
[388405387,1759158373083,-284.59439636,0.00023873,2]
[388405388,1759158373118,-480.0,0.00023873,2]
[388405389,1759158373152,-480.0,0.00023873,2]
[388405390,1759158373189,-480.0,0.00023873,2]
[388405391,1759158373224,-480.0,0.00023873,2]
[388405392,1759158373260,-480.0,0.00023873,2]
[388405393,1759158373295,-480.0,0.00023873,2]
[388405394,1759158373330,-480.0,0.00023873,2]
[388405395,1759158373365,-697.75,0.00023873,2]
[388405396,1759158373401,-402.17092257,0.00023873,2]
[388405397,1759158373435,-30.97936214,0.00023873,2]
[388405398,1759158373509,-449.02063786,0.00023873,2]
[388405399,1759158373543,-786.55,0.00023873,2]
[388405400,1759158373577,-480.0,0.00023873,2]
[388405401,1759158373611,-565.86,0.00023873,2]
[388405402,1759158373645,-480.0,0.00023873,2]
[388405403,1759158373681,-1966.78,0.00023873,2]
[388405404,1759158373716,-63.58872428,0.00023873,2]
[388405405,1759158373837,-416.41127572,0.00023873,2]
[388405406,1759158373873,-480.0,0.00023873,2]
[388405407,1759158373906,-366.34748546,0.00023873,2]
[388405408,1759158373941,-480.0,0.00023873,2]
[388405409,1759158373977,-950.91,0.00023873,2]
[388405410,1759158374011,-480.0,0.00023873,2]
[388405411,1759158374046,-480.0,0.00023873,2]
[388405412,1759158374080,-607.06,0.00023873,2]
[388405413,1759158374115,-480.0,0.00023873,2]
[388405414,1759158374149,-38.55247764,0.00023873,2]
[388405415,1759158375872,-371.18415127,0.00023871,2]
[388405416,1759158375903,-108.81584873,0.00023871,2]
[388405417,1759158375914,-441.44752236,0.00023873,2]
[388405418,1759158375924,-56.79662891,0.00023873,2]
[388405419,1759158375985,-160.0,0.00023776,4]
[388405420,1759158375995,-320.0,0.00023873,2]
[388405421,1759158376073,-103.20337109,0.00023873,2]
[388405422,1759158376083,-376.79662891,0.00023873,2]
[388405423,1759158384407,-160.0,0.00023408,3]
[388405424,1759158384444,-1255.43,0.00023786,2]
[388405425,1759158384481,-3007.54,0.00023786,2]
[388405426,1759158384516,-480.0,0.00023786,2]
[388405427,1759158384661,-194.07,0.00023865,3]
[388405428,1759158385023,-399.89,0.00023865,3]
[388405429,1759158385061,-480.0,0.00023871,2]
[388405430,1759158385097,-1555.22,0.00023871,2]
[388405431,1759158385133,-103.20337109,0.00023873,2]
[388405432,1759158385167,-480.0,0.00023873,2]
[388405433,1759158385203,-495.98,0.00023873,2]
[388405434,1759158385239,-578.37,0.00023873,2]
[388405435,1759158385273,-717.3,0.00023873,2]
[388405436,1759158385345,-480.0,0.00023873,2]
[388405437,1759158385395,-766.94,0.00023873,2]
[388405438,1759158385437,-166.68,0.00023873,2]
[388405439,1759158385475,-480.0,0.00023873,2]
[388405440,1759158385514,-1020.47,0.00023873,2]
[388405441,1759158385552,-482.16,0.00023873,2]
[388405442,1759158385588,-480.0,0.00023873,2]
[388405443,1759158385626,-480.0,0.00023873,2]
[388405444,1759158385664,-480.0,0.00023873,2]
[388405445,1759158385794,-480.0,0.00023873,2]
[388405446,1759158385832,-480.0,0.00023873,2]
[388405447,1759158385870,-480.0,0.00023873,2]
[388405448,1759158385907,-1329.7,0.00023873,2]
[388405449,1759158385948,-480.0,0.00023874,2]
[388405450,1759158385985,-480.0,0.00023874,2]
[388405451,1759158386022,-480.0,0.00023874,2]
[388405452,1759158386060,-480.0,0.00023874,2]
[388405453,1759158386245,-624.00053302,0.00023874,2]
[388405454,1759158386281,-480.0,0.00023874,2]
[388405455,1759158386318,-715.37,0.00023874,2]
[388405456,1759158386354,-480.0,0.00023874,2]
[388405457,1759158386390,-480.0,0.00023874,2]
[388405458,1759158386427,-480.0,0.00023874,2]
[388405459,1759158386465,-569.08,0.00023874,2]
[388405460,1759158386501,-988.07,0.00023874,2]
[388405461,1759158386988,-480.0,0.00023874,2]
[388405462,1759158387023,-749.8,0.00023874,2]
[388405463,1759158388029,-109.57053302,0.00023873,2]
[388405464,1759158388058,-366.96893396,0.00023873,2]
[388405465,1759158388128,-480.0,0.00023786,2]
[388405466,1759158388149,-23.46053302,0.00023873,2]
[388405467,1759158388158,-726.33946698,0.00023874,2]
[388405468,1759158388181,-7540.41,0.00023874,2]
[388405469,1759158388416,-3724.09053302,0.00023874,2]
[388405470,1759158388427,-914.19,0.00023874,2]
[388405471,1759158388438,-3412.4,0.00023874,2]
[388405472,1759158388447,-480.0,0.00023874,2]
[388405473,1759158388457,-813.07,0.00023874,2]
[388405474,1759158388467,-656.25946698,0.00023874,2]
[388405475,1759158391725,-480.0,0.00023786,2]
[388405476,1759158391767,-561.19,0.00023786,2]
[388405477,1759158391802,-609.28,0.00023871,2]
[388405478,1759158391838,-480.0,0.00023871,2]
[388405479,1759158391875,-946.9,0.00023873,2]
[388405480,1759158391912,-432.40333958,0.00023873,2]
[388405481,1759158391950,-184.39063718,0.00023873,2]
[388405482,1759158391988,-789.64386457,0.00023873,2]
[388405483,1759158392028,-242.75045277,0.00023873,2]
[388405484,1759158392279,-546.8934118,0.00023873,2]
[388405485,1759158392318,-789.64386457,0.00023873,2]
[388405486,1759158392357,-789.64386457,0.00023873,2]
[388405487,1759158392397,-789.64386457,0.00023873,2]
[388405488,1759158392437,-789.64386457,0.00023873,2]
[388405489,1759158392473,-156.81053302,0.00023874,2]
[388405490,1759158392510,-813.07,0.00023874,2]
[388405491,1759158392668,-789.64386457,0.00023873,2]
[388405492,1759158392706,-813.07,0.00023874,2]
[388405493,1759158392748,-813.07,0.00023874,2]
[388405494,1759158392787,-2219.66227086,0.00023874,2]
[388405495,1759158392894,-789.64386457,0.00023873,2]
[388405496,1759158392933,-789.64386457,0.00023873,2]
[388405497,1759158392971,-729.11772914,0.00023874,2]
[388405498,1759158393006,-839.2,0.00023874,2]
[388405499,1759158393042,-480.0,0.00023874,2]
[388405500,1759158393080,-480.0,0.00023874,2]
[388405501,1759158393117,-502.27908344,0.00023874,2]
[388405502,1759158393784,-478.14170649,0.00023873,2]
[388405503,1759158393794,-34.45768024,0.00023873,2]
[388405504,1759158393822,-480.0,0.00023873,2]
[388405505,1759158393853,-275.18618433,0.00023873,2]
[388405506,1759158393862,-204.81381567,0.00023873,2]
[388405507,1759158393890,-584.8300489,0.00023873,2]
[388405508,1759158393899,-480.0,0.00023873,2]
[388405509,1759158393909,-217.6899511,0.00023873,2]
[388405510,1759158401763,-480.0,0.00023786,2]
[388405511,1759158401801,-480.0,0.00023786,2]
[388405512,1759158401833,-480.0,0.00023786,2]
[388405513,1759158401865,-480.0,0.00023786,2]
[388405514,1759158401899,-480.0,0.00023871,2]
[388405515,1759158401933,-648.47,0.00023871,2]
[388405516,1759158401968,-262.3100489,0.00023873,2]
[388405517,1759158402005,-789.64386457,0.00023873,2]
[388405518,1759158402042,-789.64386457,0.00023873,2]
[388405519,1759158402182,-480.0,0.00023873,2]
[388405520,1759158402215,-480.0,0.00023873,2]
[388405521,1759158402247,-480.0,0.00023873,2]
[388405522,1759158402284,-780.24091656,0.00023874,2]
[388405523,1759158402317,-1642.39,0.00023874,2]
[388405524,1759158402486,-2843.43,0.00023874,2]
[388405525,1759158402519,-480.0,0.00023874,2]
[388405526,1759158402553,-1138.77,0.00023874,2]
[388405527,1759158402678,-1075.61,0.00023874,2]
[388405528,1759158402716,-2857.58,0.00023874,2]
[388405529,1759158402755,-701.17,0.00023874,2]
[388405530,1759158402931,-731.29,0.00023874,2]
[388405531,1759158402968,-200.0,0.00023874,10]
[388405532,1759158403004,-200.0,0.00023874,10]
[388405533,1759158403039,-200.0,0.00023874,10]
[388405534,1759158403075,-200.0,0.00023874,10]
[388405535,1759158403111,-480.0,0.00023874,2]
[388405536,1759158403353,-200.0,0.00023874,10]
[388405537,1759158403388,-200.0,0.00023874,10]
[388405538,1759158403423,-200.0,0.00023874,10]
[388405539,1759158403459,-200.0,0.00023874,10]
[388405540,1759158403494,-200.0,0.00023874,10]
[388405541,1759158403530,-200.0,0.00023874,10]
[388405542,1759158403566,-200.0,0.00023874,10]
[388405543,1759158403601,-200.0,0.00023874,10]
[388405544,1759158403636,-200.0,0.00023874,10]
[388405545,1759158403671,-200.0,0.00023874,10]
[388405546,1759158403707,-200.0,0.00023874,10]
[388405547,1759158403747,-200.0,0.00023874,10]
[388405548,1759158403783,-200.0,0.00023874,10]
[388405549,1759158403819,-200.0,0.00023874,10]
[388405550,1759158403854,-177.43,0.00023874,10]
[388405551,1759158404100,-22.57,0.00023874,10]
[388405552,1759158404135,-200.0,0.00023874,10]
[388405553,1759158404171,-1784.02,0.00023874,2]
[388405554,1759158404208,-200.0,0.00023874,10]
[388405555,1759158404243,-200.0,0.00023874,10]
[388405556,1759158404279,-200.0,0.00023874,10]
[388405557,1759158404313,-200.0,0.00023874,10]
[388405558,1759158404348,-200.0,0.00023874,10]
[388405559,1759158404382,-200.0,0.00023874,10]
[388405560,1759158404417,-200.0,0.00023874,10]
[388405561,1759158404452,-177.118955,0.00023874,10]
[388405562,1759158404676,-3417.71,0.00023874,2]
[388405563,1759158404716,-1573.52,0.00023874,2]
[388405564,1759158404912,-17.55,0.00023874,2]
[388405565,1759158404950,-480.0,0.00023874,2]
[388405566,1759158404988,-2059.3,0.00023874,2]
[388405567,1759158406167,-480.0,0.00023786,2]
[388405568,1759158406176,-480.0,0.00023873,2]
[388405569,1759158406186,-2102.8847008,0.00023874,2]
[388405570,1759158406213,-1591.07,0.00023874,2]
[388405571,1759158406247,-17.55,0.00023874,2]
[388405572,1759158406267,-480.0,0.00023874,2]
[388405573,1759158406287,-694.8052992,0.00023874,2]
[388405574,1759158406296,-521.46,0.00023874,2]
[388405575,1759158406305,-1654.89,0.00023874,2]
[388405576,1759158406315,-1426.74,0.00023874,2]
[388405577,1759158406324,-1047.76,0.00023874,2]
[388405578,1759158406334,-1599.9547008,0.00023874,2]
[388405579,1759158411919,-480.0,0.00023786,2]
[388405580,1759158411955,-480.0,0.00023786,2]
[388405581,1759158411992,-627.01,0.00023866,10]
[388405582,1759158412029,-480.0,0.00023871,2]
[388405583,1759158412065,-480.0,0.00023871,2]
[388405584,1759158412101,-486.45,0.00023873,2]
[388405585,1759158412138,-660.80723403,0.00023873,2]
[388405586,1759158412173,-660.80723403,0.00023873,2]
[388405587,1759158412211,-629.05382985,0.00023873,2]
[388405588,1759158412428,-31.75340418,0.00023873,2]
[388405589,1759158412466,-660.80723403,0.00023873,2]
[388405590,1759158412503,-660.80723403,0.00023873,2]
[388405591,1759158412544,-660.80723403,0.00023873,2]
[388405592,1759158412583,-660.80723403,0.00023873,2]
[388405593,1759158412620,-660.80723403,0.00023873,2]
[388405594,1759158412657,-660.80723403,0.00023873,2]
[388405595,1759158412692,-480.0,0.00023873,2]
[388405596,1759158412728,-480.0,0.00023873,2]
[388405597,1759158412821,-4597.1047008,0.00023874,2]
[388405598,1759158413159,-805.8005984,0.00023874,2]
[388405599,1759158413169,-118.56978746,0.00023875,2]
[388405600,1759158421924,-1088.15,0.00023786,2]
[388405601,1759158421961,-480.0,0.00023786,2]
[388405602,1759158421997,-480.0,0.00023871,2]
[388405603,1759158422032,-480.0,0.00023873,2]
[388405604,1759158422069,-480.0,0.00023873,2]
[388405605,1759158422105,-754.6,0.00023873,2]
[388405606,1759158422144,-520.20995019,0.00023873,2]
[388405607,1759158422183,-520.20995019,0.00023873,2]
[388405608,1759158422400,-520.20995019,0.00023873,2]
[388405609,1759158422439,-520.20995019,0.00023873,2]
[388405610,1759158422481,-520.20995019,0.00023873,2]
[388405611,1759158422524,-520.20995019,0.00023873,2]
[388405612,1759158422564,-520.20995019,0.00023873,2]
[388405613,1759158422605,-520.20995019,0.00023873,2]
[388405614,1759158422645,-520.20995019,0.00023873,2]
[388405615,1759158422681,-480.0,0.00023873,2]
[388405616,1759158422961,-1921.95,0.00023874,2]
[388405617,1759158422998,-480.0,0.00023875,2]
[388405618,1759158423035,-850.35,0.00023875,2]
[388405619,1759158423071,-480.0,0.00023875,2]
[388405620,1759158423106,-413.314077,0.00023875,2]
[388405621,1759158423142,-480.0,0.00023875,2]
[388405622,1759158423179,-268.781846,0.00023875,2]
[388405623,1759158423381,-211.218154,0.00023875,2]
[388405624,1759158423419,-626.0,0.00023875,2]
[388405625,1759158423457,-480.0,0.00023875,2]
[388405626,1759158423495,-959.55,0.00023875,2]
[388405627,1759158423533,-480.0,0.00023875,2]
[388405628,1759158423571,-480.0,0.00023875,2]
[388405629,1759158423609,-480.0,0.00023875,2]
[388405630,1759158423646,-480.0,0.00023875,2]
[388405631,1759158423684,-224.32813165,0.00023875,2]
[388405632,1759158423728,-480.0,0.00023875,2]
[388405637,1759158423937,-995.53,0.00023875,2]
[388405638,1759158423975,-707.78,0.00023875,2]
[388405639,1759158424011,-480.0,0.00023875,2]
[388405640,1759158424048,-480.0,0.00023875,2]
[388405641,1759158424084,-722.64,0.00023875,2]
[388405642,1759158424120,-480.0,0.00023875,2]
[388405643,1759158424157,-898.38,0.00023875,2]
[388405644,1759158424373,-471.35,0.00023875,2]
[388405645,1759158424408,-604.37,0.00023875,2]
[388405646,1759158424443,-480.0,0.00023875,2]
[388405647,1759158424481,-480.0,0.00023875,2]
[388405648,1759158424516,-483.86,0.00023875,2]
[388405649,1759158424551,-1006.13,0.00023875,2]
[388405650,1759158424586,-672.39,0.00023875,2]
[388405651,1759158424623,-793.65,0.00023875,2]
[388405652,1759158426157,-75.09647928,0.00023786,2]
[388405653,1759158426180,-483.86,0.00023786,2]
[388405654,1759158426204,-1006.13,0.00023786,2]
[388405655,1759158426226,-672.39,0.00023786,2]
[388405656,1759158426255,-810.16,0.00023786,2]
[388405657,1759158431876,-480.0,0.00023773,2]
[388405658,1759158431915,-1708.31664059,0.00023786,2]
[388405659,1759158432005,-5623.37671882,0.00023786,2]
[388405660,1759158432133,-480.0,0.00023786,2]
[388405661,1759158432168,-1060.61,0.00023871,2]
[388405662,1759158432203,-300.0,0.00023872,2]
[388405663,1759158432238,-500.0,0.00023873,2]
[388405664,1759158432273,-500.0,0.00023873,2]
[388405665,1759158432310,-500.0,0.00023873,2]
[388405666,1759158432540,-500.0,0.00023873,2]
[388405667,1759158432575,-500.0,0.00023873,2]
[388405668,1759158432612,-500.0,0.00023873,2]
[388405669,1759158432932,-500.0,0.00023873,2]
[388405670,1759158432971,-500.0,0.00023873,2]
[388405671,1759158433011,-480.0,0.00023873,2]
[388405672,1759158433051,-480.0,0.00023873,2]
[388405673,1759158433090,-16.51,0.00023875,2]
[388405674,1759158433128,-657.94,0.00023875,2]
[388405675,1759158433164,-480.0,0.00023875,2]
[388405676,1759158433200,-480.17367363,0.00023875,2]
[388405677,1759158433237,-480.0,0.00023875,2]
[388405678,1759158433274,-904.74265274,0.00023875,2]
[388405679,1759158433377,-500.0,0.00023873,2]
[388405680,1759158433412,-41.27734726,0.00023875,2]
[388405681,1759158433447,-480.0,0.00023875,2]
[388405682,1759158433484,-1015.48,0.00023875,2]
[388405683,1759158433519,-482.02214587,0.00023875,2]
[388405684,1759158433555,-480.0,0.00023875,2]
[388405685,1759158433592,-1039.24,0.00023875,2]
[388405686,1759158433628,-541.4,0.00023875,2]
[388405687,1759158433664,-48.27101374,0.00023875,2]
[388405688,1759158433768,-744.62898626,0.00023875,2]
[388405689,1759158433807,-538.23,0.00023875,2]
[388405690,1759158433842,-469.70766939,0.00023875,2]
[388405691,1759158433877,-2443.07,0.00023875,2]
[388405692,1759158433914,-480.0,0.00023875,2]
[388405693,1759158434869,-648.45633352,0.00023786,2]
[388405694,1759158434892,-206.07366648,0.00023786,2]
[388405695,1759158434901,-273.92633352,0.00023786,2]
[388405696,1759158434928,-207.47636021,0.00023786,2]
[388405697,1759158434937,-441.26032849,0.00023871,2]
[388405698,1759158441844,-849.71,0.00023786,2]
[388405699,1759158441881,-480.0,0.00023786,2]
[388405700,1759158441919,-85.34967151,0.00023871,2]
[388405701,1759158441952,-480.0,0.00023873,2]
[388405702,1759158441985,-516.39962578,0.00023873,2]
[388405703,1759158442020,-480.0,0.00023873,2]
[388405704,1759158442060,-500.0,0.00023873,2]
[388405705,1759158442100,-500.0,0.00023873,2]
[388405706,1759158442135,-362.12597013,0.00023873,2]
[388405707,1759158442167,-497.14,0.00023873,2]
[388405708,1759158442314,-1200.0,0.00023874,2]
[388405709,1759158442349,-1710.97,0.00023875,2]
[388405710,1759158442383,-480.0,0.00023875,2]
[388405711,1759158442418,-480.0,0.00023875,2]
[388405712,1759158442450,-859.7,0.00023875,2]
[388405713,1759158442602,-539.87,0.00023871,2]
[388405714,1759158442632,-538.67,0.00023875,2]
[388405715,1759158442662,-480.0,0.00023875,2]
[388405716,1759158442694,-500.0,0.00023875,2]
[388405717,1759158442729,-480.0,0.00023875,2]
[388405718,1759158442766,-520.46,0.00023875,2]
[388405719,1759158442801,-480.0,0.00023875,2]
[388405720,1759158442840,-813.07,0.00023875,2]
[388405721,1759158442876,-480.0,0.00023875,2]
[388405722,1759158443001,-480.0,0.00023786,2]
[388405723,1759158443038,-2634.19,0.00023871,2]
[388405724,1759158443074,-501.64,0.00023875,2]
[388405725,1759158443112,-526.52,0.00023875,2]
[388405726,1759158443149,-841.02,0.00023875,2]
[388405727,1759158443324,-33.27,0.00023875,2]
[388405728,1759158443360,-2797.78,0.00023875,2]
[388405729,1759158443396,-1209.35,0.00023875,2]
[388405730,1759158443434,-460.18967431,0.00023875,2]
[388405731,1759158443474,-106.48065138,0.00023875,2]
[388405732,1759158443598,-785.86934862,0.00023875,2]
[388405733,1759158443635,-480.0,0.00023875,2]
[388405734,1759158443673,-498.13,0.00023875,2]
[388405735,1759158443711,-965.66,0.00023875,2]
[388405736,1759158443752,-792.37,0.00023875,2]
[388405737,1759158443789,-875.24,0.00023875,2]
[388405738,1759158443826,-500.0,0.00023875,2]
[388405739,1759158444114,-500.0,0.00023875,2]
[388405740,1759158444151,-500.0,0.00023875,2]
[388405741,1759158444187,-500.0,0.00023875,2]
[388405742,1759158444224,-902.42,0.00023875,2]
[388405743,1759158444263,-534.85,0.00023875,2]
[388405744,1759158444475,-1241.22,0.00023875,2]
[388405745,1759158445488,-807.98934862,0.00023875,2]
[388405746,1759158445511,-534.85,0.00023875,2]
[388405747,1759158445533,-300.19065138,0.00023875,2]
[388405748,1759158445542,-480.0,0.00023875,2]
[388405749,1759158445552,-889.2,0.00023875,2]
[388405750,1759158445561,-1214.85934862,0.00023875,2]
[388405773,1759158480826,314.42,0.00018082,8]
[388405774,1759158481133,314.42,0.00018082,8]
[388405777,1759158492661,1001.09666346,0.00019178,2]
[388405778,1759158551822,5000.0,0.000234,2]
[388405780,1759158575080,5000.0,0.000234,2]
[388405781,1759158582815,214.33,0.000234,2]
[388405802,1759158597613,5000.0,0.000234,2]
[388405803,1759158606054,5000.0,0.000234,2]
[388405804,1759158621810,5000.0,0.000234,2]
[388405805,1759158630259,5000.0,0.000234,2]
[388405806,1759158631472,-170.05396107,0.000235,2]
[388405826,1759158632585,-931.44673521,0.00023673,2]
[388405828,1759158632595,-608.13852162,0.00023673,2]
[388405830,1759158632604,-522.51,0.00023765,10]
[388405832,1759158632614,-283.80977236,0.00023772,2]
[388405834,1759158632625,-16.19022764,0.00023772,2]
[388405836,1759158632635,-300.0,0.00023772,2]
[388405838,1759158632645,-300.0,0.00023772,2]
[388405840,1759158632657,-300.0,0.00023772,2]
[388405842,1759158632667,-1200.0,0.00023772,2]
[388405844,1759158632676,-480.0,0.00023773,2]
[388405846,1759158632686,-480.0,0.00023773,2]
[388405848,1759158632696,-480.0,0.00023773,2]
[388405850,1759158632706,-480.0,0.00023773,2]
[388405852,1759158632715,-618.01,0.00023773,2]
[388405854,1759158632728,-480.0,0.00023773,2]
[388405856,1759158632738,-1013.97,0.00023773,2]
[388405858,1759158632748,-480.0,0.00023773,2]
[388405860,1759158632757,-480.0,0.00023773,2]
[388405862,1759158632767,-1342.73,0.00023773,2]
[388405863,1759158632777,-480.0,0.00023773,2]
[388405865,1759158632790,-2962.42,0.00023773,2]
[388405867,1759158632800,-481.0722993,0.00023773,2]
[388405869,1759158632810,-5544.37,0.00023773,2]
[388405871,1759158632819,-480.0,0.00023773,2]
[388405873,1759158632828,-483.751154,0.00023773,2]
[388405875,1759158632837,-480.0,0.00023773,2]
[388405877,1759158632847,-657.07,0.00023773,2]
[388405879,1759158632861,-480.0,0.00023773,2]
[388405881,1759158632871,-539.82,0.00023773,2]
[388405882,1759158632880,-480.0,0.00023773,2]
[388405884,1759158632890,-5743.03,0.00023773,2]
[388405886,1759158632899,-2111.82,0.00023773,2]
[388405888,1759158632909,-1490.42,0.00023773,2]
[388405889,1759158632918,-564.32,0.00023773,2]
[388405891,1759158632927,-480.0,0.00023773,2]